bitfinex-derivatives/quotes_BTCF0:USTF0_20250810
["timestamp","ask_amount","ask_price","bid_price","bid_amount"]
[1754816987108,2.05482652,118390.0,118380.0,0.20384642]
[1754816987510,2.05482652,118390.0,118380.0,0.12804089]
[1754816987712,2.05482652,118390.0,118380.0,0.04357639]
[1754816988304,2.05482652,118390.0,118380.0,0.07580553]
[1754816988613,0.1572275,118380.0,118370.0,0.35432193]
[1754816988910,1.29834021,118380.0,118370.0,0.26974853]
[1754816989504,1.29834021,118380.0,118370.0,0.193943]
[1754816989710,1.29834021,118380.0,118370.0,0.194943]
[1754816990404,1.29834021,118380.0,118370.0,0.195943]
[1754816990802,0.87452359,118380.0,118370.0,0.310861]
[1754816991112,0.87452359,118380.0,118370.0,0.418091]
[1754816991606,0.01698659,118380.0,118370.0,0.418091]
[1754816992003,0.06721659,118380.0,118370.0,0.49389653]
[1754816992203,0.51372359,118380.0,118370.0,0.49389653]
[1754816992410,0.51372359,118380.0,118370.0,0.418091]
[1754816994010,0.51372359,118380.0,118370.0,0.49389653]
[1754816995207,0.87452359,118380.0,118370.0,0.49389653]
[1754816995412,0.87452359,118380.0,118370.0,0.418091]
[1754816997016,0.87452359,118380.0,118370.0,0.310861]
[1754816999212,0.87452359,118380.0,118370.0,0.397651]
[1754816999514,0.87452359,118380.0,118370.0,0.418091]
[1754817003216,0.87452359,118380.0,118370.0,0.397651]
[1754817003418,0.87452359,118380.0,118370.0,0.365181]
[1754817004121,0.87452359,118380.0,118370.0,0.397651]
[1754817004315,0.53501409,118380.0,118370.0,0.418091]
[1754817004521,0.87452359,118380.0,118370.0,0.418091]
[1754817007528,0.53501409,118380.0,118370.0,0.418091]
[1754817007919,0.87452359,118380.0,118370.0,0.418091]
[1754817010030,0.87452359,118380.0,118370.0,0.310861]
[1754817010527,0.53501409,118380.0,118370.0,0.361891]
[1754817010725,0.87452359,118380.0,118370.0,0.361891]
[1754817011929,0.87452359,118380.0,118370.0,0.417501]
[1754817014628,0.87452359,118380.0,118370.0,0.397141]
[1754817015631,0.87452359,118380.0,118370.0,0.328661]
[1754817017433,1.23532359,118380.0,118370.0,0.328661]
[1754817018033,1.25410832,118380.0,118370.0,0.328661]
[1754817018333,1.25410762,118380.0,118370.0,0.310861]
[1754817020024,1.25410762,118380.0,118370.0,0.328661]
[1754817020224,1.25410762,118380.0,118370.0,0.361891]
[1754817020430,1.25410762,118380.0,118370.0,0.421021]
[1754817020932,1.25410762,118380.0,118370.0,0.456271]
[1754817021333,1.25410762,118380.0,118370.0,0.476631]
[1754817022132,1.25410762,118380.0,118370.0,0.344991]
[1754817022326,1.59361712,118380.0,118370.0,0.370601]
[1754817022534,1.25410762,118380.0,118370.0,0.2861324]
[1754817023626,1.25410762,118380.0,118370.0,0.3039324]
[1754817023832,1.25410762,118380.0,118370.0,0.3371624]
[1754817024033,1.23532359,118380.0,118370.0,0.3927724]
[1754817024726,1.65972848,118380.0,118370.0,0.3927724]
[1754817025430,1.65972848,118380.0,118370.0,0.3724124]
[1754817027031,1.65972848,118380.0,118370.0,0.176048]
[1754817027228,0.1582144,118370.0,118360.0,0.1101912]
[1754817027433,1.80161066,118370.0,118360.0,0.1278912]
[1754817027742,1.80161066,118370.0,118360.0,0.2167312]
[1754817028343,1.80161066,118370.0,118360.0,0.0844812]
[1754817028541,1.80161066,118370.0,118360.0,0.1180912]
[1754817028733,1.80161066,118370.0,118360.0,0.1240912]
[1754817029544,1.80161066,118370.0,118360.0,0.1418912]
[1754817029747,1.80161066,118370.0,118360.0,0.2103712]
[1754817029946,1.80161066,118370.0,118360.0,0.2307312]
[1754817030253,1.02829066,118370.0,118360.0,0.3456492]
[1754817030453,1.80161066,118370.0,118360.0,0.3456492]
[1754817039151,1.94191066,118370.0,118360.0,0.3456492]
[1754817039349,1.80161066,118370.0,118360.0,0.3456492]
[1754817041450,0.77365253,118370.0,118360.0,0.3452192]
[1754817041650,1.54689253,118370.0,118360.0,0.3452192]
[1754817041849,1.80153066,118370.0,118360.0,0.3452192]
[1754817043357,1.02829066,118370.0,118360.0,0.3452192]
[1754817043557,1.80153066,118370.0,118360.0,0.3452192]
[1754817045458,1.2922544,118370.0,118360.0,0.3452192]
[1754817045658,1.80153066,118370.0,118360.0,0.3452192]
[1754817051665,1.2922544,118370.0,118360.0,0.3452192]
[1754817051859,1.80153066,118370.0,118360.0,0.3452192]
[1754817053863,1.54689253,118370.0,118360.0,0.3452192]
[1754817054062,1.80153066,118370.0,118360.0,0.3452192]
[1754817054565,1.54689253,118370.0,118360.0,0.3452192]
[1754817054966,1.80153066,118370.0,118360.0,0.3452192]
[1754817056369,1.54689253,118370.0,118360.0,0.3452192]
[1754817056668,1.54693253,118370.0,118360.0,0.3452192]
[1754817058270,1.54693253,118370.0,118360.0,0.3641892]
[1754817058562,1.2922944,118370.0,118360.0,0.3641892]
[1754817058770,1.54693253,118370.0,118360.0,0.3641892]
[1754817059268,1.2922944,118370.0,118360.0,0.3641892]
[1754817059469,1.54693253,118370.0,118360.0,0.3641892]
[1754817061859,0.37475,118370.0,118360.0,0.61882733]
[1754817062067,0.01395,118370.0,118360.0,0.87346546]
[1754817062262,0.70816472,118380.0,118370.0,0.2174244]
[1754817062465,0.96250285,118380.0,118370.0,0.29325437]
[1754817063668,0.96250285,118380.0,118370.0,0.2184244]
[1754817064670,0.96250285,118380.0,118370.0,0.2194244]
[1754817064877,0.96250285,118380.0,118370.0,0.47406253]
[1754817065271,0.96250285,118380.0,118370.0,0.58898053]
[1754817065467,0.96250285,118380.0,118370.0,0.3343424]
[1754817068674,0.60170285,118380.0,118370.0,0.58898053]
[1754817069069,0.27162472,118380.0,118370.0,0.58898053]
[1754817069273,0.32201472,118380.0,118370.0,0.58898053]
[1754817069474,0.32201472,118380.0,118370.0,0.3343424]
[1754817069773,0.59960285,118380.0,118370.0,0.3343424]
[1754817070165,0.59960285,118380.0,118370.0,0.6033424]
[1754817072277,0.09032659,118380.0,118370.0,0.6033424]
[1754817072478,0.34496472,118380.0,118370.0,0.6033424]
[1754817073578,0.59960285,118380.0,118370.0,0.6033424]
[1754817074569,0.34496472,118380.0,118370.0,0.62236476]
[1754817074975,0.09032659,118380.0,118370.0,0.62236476]
[1754817075273,0.34496472,118380.0,118370.0,0.62236476]
[1754817076682,0.09032659,118380.0,118370.0,0.62236476]
[1754817076869,0.59960285,118380.0,118370.0,0.62236476]
[1754817077278,0.52626285,118380.0,118370.0,0.87700289]
[1754817077682,0.59960285,118380.0,118370.0,1.64976289]
[1754817077874,0.09032659,118380.0,118370.0,1.64976289]
[1754817078077,0.59960285,118380.0,118370.0,1.64976289]
[1754817079574,0.0003,118390.0,118380.0,0.0802]
[1754817079779,0.3608,118410.0,118400.0,0.0266]
[1754817079780,0.39779,118410.0,118400.0,0.0266]
[1754817079978,0.43414,118410.0,118400.0,0.2182528]
[1754817080177,0.68877813,118410.0,118400.0,0.3331708]
[1754817080578,0.43414,118410.0,118400.0,0.58780893]
[1754817081080,0.68877813,118410.0,118400.0,0.58780893]
[1754817081270,0.43414,118410.0,118400.0,0.58780893]
[1754817081470,0.68877813,118410.0,118400.0,0.58780893]
[1754817081678,0.69277813,118410.0,118400.0,0.58780893]
[1754817081880,0.33197813,118410.0,118400.0,0.94860893]
[1754817082086,0.33197813,118410.0,118400.0,0.6939708]
[1754817082278,0.07634,118410.0,118400.0,0.94860893]
[1754817082471,0.33097813,118410.0,118400.0,1.01542657]
[1754817082669,0.07634,118410.0,118400.0,0.76078844]
[1754817083081,0.07634,118410.0,118400.0,0.6939708]
[1754817083378,0.07634,118410.0,118400.0,0.70332777]
[1754817083685,0.41554655,118410.0,118400.0,0.70332777]
[1754817084087,0.41454655,118410.0,118400.0,0.70332777]
[1754817085579,0.49899225,118410.0,118400.0,0.34252777]
[1754817086284,0.41454655,118410.0,118400.0,0.34252777]
[1754817086485,0.49899225,118410.0,118400.0,0.34252777]
[1754817087289,0.49899225,118410.0,118400.0,0.40941303]
[1754817088388,0.41454655,118410.0,118400.0,0.40941303]
[1754817089283,0.07534,118410.0,118400.0,0.40941303]
[1754817089588,0.41454655,118410.0,118400.0,0.40941303]
[1754817092379,0.07534,118410.0,118400.0,0.40941303]
[1754817092585,0.41454655,118410.0,118400.0,0.40941303]
[1754817092785,0.07534,118410.0,118400.0,0.40941303]
[1754817093098,0.41454655,118410.0,118400.0,0.40941303]
[1754817093393,0.07534,118410.0,118400.0,0.40941303]
[1754817093587,0.41454655,118410.0,118400.0,0.40941303]
[1754817094585,0.41454655,118410.0,118400.0,0.40005606]
[1754817094789,0.49899225,118410.0,118400.0,0.40005606]
[1754817095795,0.1597857,118410.0,118400.0,0.40005606]
[1754817096000,0.49899225,118410.0,118400.0,0.40005606]
[1754817096393,0.49899225,118410.0,118400.0,0.40926514]
[1754817096894,0.85979225,118410.0,118400.0,0.40926514]
[1754817098201,0.5205857,118410.0,118400.0,0.40926514]
[1754817098401,0.85979225,118410.0,118400.0,0.40926514]
[1754817099200,0.5205857,118410.0,118400.0,0.40926514]
[1754817099401,0.85979225,118410.0,118400.0,0.40926514]
[1754817100297,0.5205857,118410.0,118400.0,0.40926514]
[1754817100500,0.85979225,118410.0,118400.0,0.40926514]
[1754817101703,0.5205857,118410.0,118400.0,0.40926514]
[1754817101902,0.85979225,118410.0,118400.0,0.40926514]
[1754817102402,0.41454655,118410.0,118400.0,0.40926514]
[1754817102905,0.49899225,118410.0,118400.0,0.40926514]
[1754817104602,0.49899225,118410.0,118400.0,0.66368711]
[1754817104603,0.41420767,118410.0,118400.0,0.66368711]
[1754817104907,0.5205857,118410.0,118400.0,0.40926514]
[1754817105105,0.77500767,118410.0,118400.0,0.40926514]
[1754817105299,0.77500767,118410.0,118400.0,0.66368711]
[1754817105496,0.77500767,118410.0,118400.0,0.40926514]
[1754817105703,0.77500767,118410.0,118400.0,0.40005606]
[1754817106206,0.77500767,118410.0,118400.0,0.40937963]
[1754817106395,0.77500767,118410.0,118400.0,0.6638016]
[1754817107809,0.77500767,118410.0,118400.0,0.65447803]
[1754817109008,0.41420767,118410.0,118400.0,0.65447803]
[1754817109208,0.32976197,118410.0,118400.0,0.65447803]
[1754817109511,0.43279836,118410.0,118400.0,0.65447803]
[1754817110106,0.34835266,118410.0,118400.0,0.40005606]
[1754817110306,0.34835266,118410.0,118400.0,0.65447803]
[1754817111613,0.09393069,118410.0,118400.0,0.65447803]
[1754817111822,0.34835266,118410.0,118400.0,0.65447803]
[1754817112116,0.32976197,118410.0,118400.0,0.65447803]
[1754817112516,0.32976197,118410.0,118400.0,0.66380343]
[1754817113620,0.01754891,118420.0,118400.0,1.4479264]
[1754817113817,0.01734891,118420.0,118410.0,1.25968767]
[1754817114022,0.73576387,118430.0,118410.0,1.36681528]
[1754817114218,0.77056387,118430.0,118420.0,0.47416057]
[1754817114421,0.5160419,118430.0,118420.0,0.47416057]
[1754817114720,0.77046387,118430.0,118420.0,0.53476259]
[1754817115221,0.77046387,118430.0,118420.0,0.64968059]
[1754817115823,0.77246387,118430.0,118420.0,0.64968059]
[1754817116022,0.77446387,118430.0,118420.0,0.64968059]
[1754817116622,0.77446387,118430.0,118420.0,0.39525862]
[1754817117328,0.77446387,118430.0,118420.0,0.64968059]
[1754817117515,0.77446387,118430.0,118420.0,0.39525862]
[1754817118629,0.69003197,118430.0,118420.0,0.3346566]
[1754817119124,0.77446337,118430.0,118420.0,0.3346566]
[1754817119722,0.32923197,118430.0,118420.0,0.3346566]
[1754817119926,0.32923197,118430.0,118420.0,0.39525862]
[1754817120327,0.41366337,118430.0,118420.0,0.39525862]
[1754817120529,0.41366337,118430.0,118420.0,0.3346566]
[1754817121127,0.41366337,118430.0,118420.0,0.39525862]
[1754817121517,0.41366337,118430.0,118420.0,0.3346566]
[1754817121725,0.41366337,118430.0,118420.0,0.39525862]
[1754817121928,0.66808534,118430.0,118420.0,0.39525862]
[1754817122129,0.66808534,118430.0,118420.0,0.3346566]
[1754817123318,0.66808534,118430.0,118420.0,0.39525862]
[1754817124120,0.66808534,118430.0,118420.0,0.3346566]
[1754817125429,0.41366337,118430.0,118420.0,0.3346566]
[1754817128032,0.41366337,118430.0,118420.0,0.39525862]
[1754817129131,0.41366337,118430.0,118420.0,0.3346566]
[1754817130031,0.77446337,118430.0,118420.0,0.3346566]
[1754817130231,0.5200414,118430.0,118420.0,0.3346566]
[1754817130531,0.77446337,118430.0,118420.0,0.3346566]
[1754817131133,1.55710337,118430.0,118420.0,0.3346566]
[1754817132032,1.81152534,118430.0,118420.0,0.3346566]
[1754817139737,1.81152534,118430.0,118420.0,0.39514243]
[1754817139941,1.55710337,118430.0,118420.0,0.3346566]
[1754817142644,1.3026814,118430.0,118420.0,0.3346566]
[1754817142841,1.55710337,118430.0,118420.0,0.3346566]
[1754817145244,1.57558167,118430.0,118420.0,0.3346566]
[1754817147049,1.83000364,118430.0,118420.0,0.3346566]
[1754817148049,1.57558167,118430.0,118420.0,0.3346566]
[1754817151853,1.3211597,118430.0,118420.0,0.3346566]
[1754817152059,1.57558167,118430.0,118420.0,0.3346566]
[1754817153752,1.49115027,118430.0,118420.0,0.3346566]
[1754817153943,0.70851027,118430.0,118420.0,0.58907857]
[1754817154750,0.69003197,118430.0,118420.0,0.64962823]
[1754817155847,0.43561,118430.0,118420.0,0.64962823]
[1754817156350,0.69003197,118430.0,118420.0,0.64962823]
[1754817156955,0.004,118430.0,118420.0,0.9040502]
[1754817157258,0.43115,118440.0,118430.0,0.2142014]
[1754817157455,0.68527197,118440.0,118430.0,0.52918428]
[1754817157658,0.68527197,118440.0,118430.0,1.31314428]
[1754817157957,0.68527197,118440.0,118430.0,0.2142014]
[1754817158261,0.68527197,118440.0,118430.0,0.52918139]
[1754817158450,0.68827197,118440.0,118430.0,0.52918139]
[1754817158647,0.94269394,118440.0,118430.0,0.46862337]
[1754817158956,0.69127197,118440.0,118430.0,0.52916006]
[1754817159345,0.94569394,118440.0,118430.0,0.46862337]
[1754817159757,0.69127197,118440.0,118430.0,0.46862337]
[1754817160150,0.69127197,118440.0,118430.0,0.64404598]
[1754817161053,0.69127197,118440.0,118430.0,0.58354137]
[1754817161255,0.94569394,118440.0,118430.0,0.38961491]
[1754817162254,0.94569394,118440.0,118430.0,0.38960677]
[1754817162451,0.63437197,118440.0,118430.0,0.64402874]
[1754817162763,0.006,118440.0,118430.0,0.66320853]
[1754817162959,0.26042197,118440.0,118430.0,0.66320853]
[1754817163660,0.27769197,118440.0,118430.0,0.66320853]
[1754817164363,0.30834197,118440.0,118430.0,0.66320853]
[1754817164660,0.33047197,118440.0,118430.0,0.66320853]
[1754817165363,0.58489394,118440.0,118430.0,0.66320853]
[1754817165563,0.58489394,118440.0,118430.0,0.40878656]
[1754817165865,2.06886021,118440.0,118430.0,0.32001656]
[1754817166162,1.81443824,118440.0,118430.0,0.32001656]
[1754817166357,1.81443824,118440.0,118430.0,0.2185362]
[1754817166358,2.06886021,118440.0,118430.0,0.2185362]
[1754817166563,2.06886021,118440.0,118430.0,0.2182294]
[1754817166859,1.03011824,118440.0,118430.0,0.2434794]
[1754817167067,1.81451824,118440.0,118430.0,0.3479994]
[1754817167769,1.81451824,118440.0,118430.0,0.40847976]
[1754817168770,1.3056743,118440.0,118430.0,0.40847976]
[1754817168955,1.81451824,118440.0,118430.0,0.40847976]
[1754817169565,1.3056743,118440.0,118430.0,0.40847976]
[1754817169750,0.94569394,118440.0,118430.0,0.40847976]
[1754817170065,1.81527824,118440.0,118430.0,0.40847976]
[1754817170461,1.81527824,118440.0,118430.0,0.30395976]
[1754817171064,1.81527824,118440.0,118430.0,0.31970976]
[1754817171271,1.81527824,118440.0,118430.0,0.40847976]
[1754817171568,1.81527824,118440.0,118430.0,0.3479994]
[1754817173368,1.73085394,118440.0,118430.0,0.3479994]
[1754817174068,1.81527824,118440.0,118430.0,0.3479994]
[1754817174768,1.3064343,118440.0,118430.0,0.36644134]
[1754817174968,1.81527824,118440.0,118430.0,0.36644134]
[1754817176867,1.81599824,118440.0,118430.0,0.36644134]
[1754817178357,1.81599824,118440.0,118430.0,0.34642134]
[1754817178554,1.81599824,118440.0,118430.0,0.31342134]
[1754817178971,1.81599824,118440.0,118430.0,0.3739017]
[1754817179964,1.81599824,118440.0,118430.0,0.4069017]
[1754817180271,1.81599824,118440.0,118430.0,0.4269217]
[1754817180474,1.81599824,118440.0,118430.0,0.4069017]
[1754817181775,1.81599824,118440.0,118430.0,0.3381517]
[1754817183977,1.81599824,118440.0,118430.0,0.27767134]
[1754817184778,1.83467942,118440.0,118430.0,0.27767134]
[1754817185874,2.08910139,118440.0,118430.0,0.23667134]
[1754817186075,2.08910386,118440.0,118430.0,0.23667134]
[1754817186668,2.08910386,118440.0,118430.0,0.26041134]
[1754817186974,1.83468189,118440.0,118430.0,0.26041134]
[1754817188870,2.08910386,118440.0,118430.0,0.17597994]
[1754817190476,1.32583795,118440.0,118430.0,0.17597994]
[1754817190676,1.83468189,118440.0,118430.0,0.26041134]
[1754817190879,1.83468189,118440.0,118430.0,0.17597994]
[1754817191974,1.83468189,118440.0,118430.0,0.26041134]
[1754817194786,1.81599824,118440.0,118430.0,0.26041134]
[1754817195179,2.17679824,118440.0,118430.0,0.26041134]
[1754817196576,2.43122021,118440.0,118430.0,0.133798]
[1754817197085,2.44991749,118440.0,118430.0,0.116528]
[1754817197278,2.43122021,118440.0,118430.0,0.116528]
[1754817200085,2.44990361,118440.0,118430.0,0.116528]
[1754817204379,2.43122021,118440.0,118430.0,0.116528]
[1754817204576,2.43192021,118440.0,118430.0,0.116528]
[1754817205986,2.4505942,118440.0,118430.0,0.116528]
[1754817206284,2.43192021,118440.0,118430.0,0.116528]
[1754817208586,2.45059153,118440.0,118430.0,0.116528]
[1754817210080,2.45059153,118440.0,118430.0,0.140268]
[1754817213584,2.45059153,118440.0,118430.0,0.121388]
[1754817214298,2.59079153,118440.0,118430.0,0.121388]
[1754817218102,1.66471153,118440.0,118430.0,0.121388]
[1754817218306,2.19168956,118440.0,118430.0,0.3099095]
[1754817219707,2.19168956,118440.0,118430.0,0.225478]
[1754817220105,2.19168956,118440.0,118430.0,0.3099095]
[1754817220306,2.19168956,118440.0,118430.0,0.32846955]
[1754817220698,0.8827743,118440.0,118430.0,0.32846955]
[1754817220897,2.17313824,118440.0,118430.0,0.32846955]
[1754817222797,2.00339917,118440.0,118430.0,0.32846955]
[1754817224795,2.0220777,118440.0,118430.0,0.32846955]
[1754817226807,1.9520277,118440.0,118430.0,0.32846955]
[1754817227399,1.9682177,118440.0,118430.0,0.32846955]
[1754817228913,1.62911283,118440.0,118430.0,0.32846955]
[1754817229116,1.9682177,118440.0,118430.0,0.32846955]
[1754817231312,2.30732257,118440.0,118430.0,0.22437955]
[1754817233913,2.30732257,118440.0,118430.0,0.13994805]
[1754817234811,2.28864404,118440.0,118430.0,0.13994805]
[1754817237816,2.28864404,118440.0,118430.0,0.11620805]
[1754817238117,2.28864404,118440.0,118430.0,0.14024805]
[1754817238719,2.28864404,118440.0,118430.0,0.22467955]
[1754817240417,2.28864404,118440.0,118430.0,0.32964955]
[1754817240418,1.94953917,118440.0,118430.0,0.32964955]
[1754817240814,1.16801917,118440.0,118430.0,0.32964955]
[1754817241005,1.94785917,118440.0,118430.0,0.32964955]
[1754817249921,2.28696404,118440.0,118430.0,0.22467955]
[1754817253225,2.30565534,118440.0,118430.0,0.22467955]
[1754817258617,2.13617694,118440.0,118430.0,0.22467955]
[1754817259426,2.11748564,118440.0,118430.0,0.22467955]
[1754817259929,2.37185131,118440.0,118430.0,0.22467955]
[1754817261628,1.6087543,118440.0,118430.0,0.22467955]
[1754817261838,2.37185131,118440.0,118430.0,0.22467955]
[1754817262734,1.65025131,118440.0,118430.0,0.22467955]
[1754817263033,2.37185131,118440.0,118430.0,0.22467955]
[1754817264932,2.37185131,118440.0,118430.0,0.11620805]
[1754817265332,2.37185131,118440.0,118430.0,0.14098805]
[1754817266737,2.37185131,118440.0,118430.0,0.22541955]
[1754817266937,2.39054878,118440.0,118430.0,0.22541955]
[1754817269037,1.62745177,118440.0,118430.0,0.27483955]
[1754817269242,2.13618311,118440.0,118430.0,0.30878955]
[1754817270241,2.13618311,118440.0,118430.0,0.24204955]
[1754817273443,2.13618311,118440.0,118430.0,0.15761805]
[1754817273637,2.39054878,118440.0,118430.0,0.14098805]
[1754817273840,2.39054878,118440.0,118430.0,0.11620805]
[1754817274639,2.39054878,118440.0,118430.0,0.14098805]
[1754817274938,2.39054878,118440.0,118430.0,0.122428]
[1754817275734,2.39054878,118440.0,118430.0,0.097648]
[1754817278044,2.39054878,118440.0,118430.0,0.121338]
[1754817283841,2.39054878,118440.0,118430.0,0.097648]
[1754817284042,2.39054878,118440.0,118430.0,0.121338]
[1754817296757,1.66894878,118440.0,118430.0,0.121338]
[1754817296959,2.39054878,118440.0,118430.0,0.121338]
[1754817301461,2.39054129,118440.0,118430.0,0.121338]
[1754817306066,2.39054129,118440.0,118430.0,0.171018]
[1754817306269,2.39054129,118440.0,118430.0,0.3099995]
[1754817306458,2.13617562,118440.0,118430.0,0.3099995]
[1754817307970,2.13412562,118440.0,118430.0,0.3099995]
[1754817308871,1.62539428,118440.0,118430.0,0.3099995]
[1754817309058,2.13412562,118440.0,118430.0,0.3099995]
[1754817310062,2.13412562,118440.0,118430.0,0.1820795]
[1754817310260,2.13412562,118440.0,118430.0,0.2900995]
[1754817310664,2.13412562,118440.0,118430.0,0.3091295]
[1754817328989,2.13412562,118440.0,118430.0,0.2900995]
[1754817329778,2.13412562,118440.0,118430.0,0.2555195]
[1754817330588,2.38849129,118440.0,118430.0,0.2555195]
[1754817331692,1.62539428,118440.0,118430.0,0.2555195]
[1754817331885,2.38849129,118440.0,118430.0,0.2900995]
[1754817332082,2.13412562,118440.0,118430.0,0.3091295]
[1754817333092,1.35428562,118440.0,118430.0,0.3091295]
[1754817333286,2.13140562,118440.0,118430.0,0.3091295]
[1754817334499,2.11271564,118440.0,118430.0,0.3091295]
[1754817334888,1.6039843,118440.0,118430.0,0.3091295]
[1754817335088,2.11271564,118440.0,118430.0,0.3091295]
[1754817337903,1.33559564,118440.0,118430.0,0.3091295]
[1754817338205,2.11283564,118440.0,118430.0,0.3091295]
[1754817338695,2.11283564,118440.0,118430.0,0.56349517]
[1754817339705,1.6041043,118440.0,118430.0,0.56349517]
[1754817340005,2.11283564,118440.0,118430.0,0.56349517]
[1754817340698,1.6041043,118440.0,118430.0,0.3091295]
[1754817340900,2.11283564,118440.0,118430.0,0.3091295]
[1754817341091,1.6041043,118440.0,118430.0,0.3091295]
[1754817341296,2.11283564,118440.0,118430.0,0.3091295]
[1754817343907,1.33559564,118440.0,118430.0,0.3091295]
[1754817344111,1.25117134,118440.0,118430.0,0.56349517]
[1754817345012,1.00862567,118440.0,118430.0,0.3091295]
[1754817345309,1.00862567,118440.0,118430.0,0.56349517]
[1754817346209,0.75426,118440.0,118430.0,0.56349517]
[1754817346507,1.00862567,118440.0,118430.0,0.56349517]
[1754817347210,0.64782567,118440.0,118430.0,0.56349517]
[1754817348512,0.39346,118440.0,118430.0,0.56349517]
[1754817348704,0.64782567,118440.0,118430.0,0.56349517]
[1754817349013,0.28702567,118440.0,118430.0,0.56349517]
[1754817349318,0.03266,118440.0,118430.0,0.56349517]
[1754817349510,0.28702567,118440.0,118430.0,0.56349517]
[1754817349710,0.01852,118440.0,118430.0,0.3091295]
[1754817349907,0.27288567,118440.0,118430.0,0.56349517]
[1754817350108,0.28636567,118440.0,118430.0,0.56349517]
[1754817350406,0.28636567,118440.0,118430.0,0.58083039]
[1754817350812,0.28336567,118440.0,118430.0,0.58083039]
[1754817351313,0.28036567,118440.0,118430.0,0.58083039]
[1754817351815,0.28136567,118440.0,118430.0,0.58083039]
[1754817354216,0.28136567,118440.0,118430.0,0.84983039]
[1754817354516,0.01352,118440.0,118430.0,0.84983039]
[1754817354713,0.0017,118440.0,118430.0,0.84983039]
[1754817354919,0.0017,118440.0,118430.0,1.63386806]
[1754817355115,0.0017,118440.0,118430.0,2.23218947]
[1754817357827,0.0017,118440.0,118430.0,2.06331747]
[1754817358124,0.0017,118440.0,118430.0,2.23218947]
[1754817358918,0.0017,118440.0,118430.0,1.9778238]
[1754817359224,0.0017,118440.0,118430.0,2.48655514]
[1754817360123,0.0017,118440.0,118430.0,2.23218947]
[1754817360721,0.0017,118440.0,118430.0,2.41086806]
[1754817362421,1e-07,118440.0,118430.0,2.48655514]
[1754817362813,0.0003,118450.0,118430.0,2.48655514]
[1754817363019,0.0001,118450.0,118440.0,1.07545584]
[1754817363218,0.25466567,118460.0,118450.0,0.10356]
[1754817363517,0.27966567,118460.0,118450.0,1.25437587]
[1754817363715,0.0253,118460.0,118450.0,1.25437587]
[1754817363913,0.27966567,118460.0,118450.0,1.25437587]
[1754817364728,0.28266567,118460.0,118450.0,1.25437587]
[1754817365229,0.28266567,118460.0,118450.0,1.35202387]
[1754817365524,0.25736567,118460.0,118450.0,1.35202387]
[1754817365726,0.26036567,118460.0,118450.0,1.36092603]
[1754817367027,0.006,118460.0,118450.0,1.36092603]
[1754817367227,0.26036567,118460.0,118450.0,1.36092603]
[1754817368029,0.006,118460.0,118450.0,1.10656036]
[1754817368232,0.26036567,118460.0,118450.0,1.36092603]
[1754817369031,0.006,118460.0,118450.0,1.62992603]
[1754817370233,0.02507907,118460.0,118450.0,1.62992603]
[1754817371036,0.006,118460.0,118450.0,1.62992603]
[1754817372528,0.006,118460.0,118450.0,1.37556036]
[1754817372728,0.006,118460.0,118450.0,1.62992603]
[1754817373442,0.006,118460.0,118450.0,2.2450917]
[1754817373835,0.006,118460.0,118450.0,1.73636036]
[1754817374029,0.006,118460.0,118450.0,2.2450917]
[1754817374230,0.006,118460.0,118450.0,1.73636036]
[1754817374436,0.28483567,118460.0,118450.0,1.21380603]
[1754817374636,0.03047,118460.0,118450.0,1.21380603]
[1754817374836,0.28483567,118460.0,118450.0,0.95944036]
[1754817375230,0.28483567,118460.0,118450.0,1.27423245]
[1754817375742,0.03047,118460.0,118450.0,1.27423245]
[1754817375946,0.28483567,118460.0,118450.0,1.27423245]
[1754817376334,0.28183567,118460.0,118450.0,1.27423245]
[1754817376642,0.02547,118460.0,118450.0,1.01986678]
[1754817376830,0.27983567,118460.0,118450.0,1.27423245]
[1754817377842,0.27983567,118460.0,118450.0,1.01986678]
[1754817378040,0.27983567,118460.0,118450.0,1.27423245]
[1754817378544,0.02547,118460.0,118450.0,1.27423245]
[1754817378734,0.001,118460.0,118450.0,1.27423245]
[1754817379543,0.001,118460.0,118450.0,1.21380603]
[1754817380146,0.001,118460.0,118450.0,1.28949311]
[1754817380744,0.001,118460.0,118450.0,1.03512744]
[1754817380939,0.001,118460.0,118450.0,1.21380603]
[1754817381444,0.001,118460.0,118450.0,0.95944036]
[1754817381645,0.25536567,118460.0,118450.0,1.21380603]
[1754817382036,0.001,118460.0,118450.0,1.21380603]
[1754817382239,0.001,118460.0,118450.0,0.95944036]
[1754817382446,0.001,118460.0,118450.0,1.21380603]
[1754817383141,0.001,118460.0,118450.0,1.4681717]
[1754817384251,0.25466567,118470.0,118460.0,0.1338003]
[1754817384442,0.80592643,118480.0,118470.0,0.1610732]
[1754817384645,0.91458423,118480.0,118470.0,0.2104632]
[1754817385148,0.91458423,118480.0,118470.0,0.3081112]
[1754817385747,0.91458423,118480.0,118470.0,0.37588863]
[1754817386650,0.91558423,118480.0,118470.0,0.37588863]
[1754817386951,0.91758423,118480.0,118470.0,0.37588863]
[1754817387254,0.91758423,118480.0,118470.0,0.43634516]
[1754817387446,0.83318693,118480.0,118470.0,0.37588863]
[1754817390252,0.83318623,118480.0,118470.0,0.37588863]
[1754817390953,0.74879013,118480.0,118470.0,0.37588863]
[1754817391744,0.40993666,118480.0,118470.0,0.37588863]
[1754817392656,0.74879013,118480.0,118470.0,0.37588863]
[1754817394955,0.39708666,118480.0,118470.0,0.37588863]
[1754817395160,0.74879013,118480.0,118470.0,0.37588863]
[1754817395760,0.40993666,118480.0,118470.0,0.37588863]
[1754817396158,0.02466666,118480.0,118470.0,1.04419863]
[1754817396553,0.02466666,118480.0,118470.0,1.05942918]
[1754817397155,0.02466666,118480.0,118470.0,1.42022918]
[1754817398450,0.02466666,118480.0,118470.0,1.3445421]
[1754817401364,0.02466666,118480.0,118470.0,1.42022918]
[1754817402557,0.02466666,118480.0,118470.0,1.43738788]
[1754817402758,0.003,118480.0,118470.0,1.43738788]
[1754817403969,0.003,118480.0,118470.0,1.3617008]
[1754817408672,0.003,118480.0,118470.0,1.27690193]
[1754817411560,0.003,118480.0,118470.0,1.53095653]
[1754817412573,0.003,118480.0,118470.0,1.59142402]
[1754817413375,0.003,118480.0,118470.0,1.08331482]
[1754817413572,0.003,118480.0,118470.0,2.13648942]
[1754817413969,0.002,118480.0,118470.0,2.13748942]
[1754817414775,0.002,118480.0,118470.0,2.07702193]
[1754817415361,0.002,118480.0,118470.0,1.82296733]
[1754817415567,0.002,118480.0,118470.0,2.07702193]
[1754817416389,0.2987046,118490.0,118470.0,2.25355703]
[1754817416565,0.3761746,118490.0,118480.0,0.82854423]
[1754817416769,0.3760746,118490.0,118480.0,0.82854423]
[1754817417477,0.3770746,118490.0,118480.0,0.82854423]
[1754817418679,0.3770746,118490.0,118480.0,0.57448963]
[1754817418979,0.3770746,118490.0,118480.0,0.82854423]
[1754817419175,0.3760746,118490.0,118480.0,0.82854423]
[1754817419375,0.3770746,118490.0,118480.0,1.09754423]